bitfinex/quotes_SOLUSD_20220228
["timestamp","ask_amount","ask_price","bid_price","bid_amount"]
[1646083668651,2.74678921,98.466,98.412,45.49373355]
[1646083669454,0.73267514,98.467,98.412,45.49373355]
[1646083669653,0.73267514,98.467,98.413,102.2]
[1646083669853,0.73267514,98.467,98.415,102.2]
[1646083672655,0.73267514,98.467,98.428,61.3]
[1646083672854,0.73267514,98.467,98.437,102.2]
[1646083676160,1.40086532,98.531,98.442,61.3]
[1646083676360,4.062,98.539,98.455,102.2]
[1646083676562,8.49502354,98.548,98.457,102.2]
[1646083676761,4.37767433,98.548,98.457,102.2]
[1646083676962,2.74678921,98.548,98.457,102.2]
[1646083677161,12.93738496,98.547,98.457,102.2]
[1646083677369,12.93738496,98.547,98.459,102.2]
[1646083677565,2.74678921,98.546,98.465,102.2]
[1646083677964,12.93738496,98.545,98.465,102.2]
[1646083678366,2.74678921,98.545,98.465,102.2]
[1646083680065,2.74678921,98.545,98.465,117.7732]
[1646083680868,2.74678921,98.545,98.458,45.8449]
[1646083681269,12.92930849,98.544,98.458,45.8449]
[1646083681465,1.37226948,98.543,98.458,45.8449]
[1646083681666,16.63832645,98.543,98.458,45.8449]
[1646083681866,14.65,98.54,98.458,45.8449]
[1646083682067,1.38107786,98.539,98.458,45.8449]
[1646083682267,16.64713483,98.539,98.458,45.8449]
[1646083682469,14.44502417,98.538,98.458,45.8449]
[1646083682669,1.76907234,98.537,98.458,45.8449]
[1646083682867,29.9644378,98.537,98.458,45.8449]
[1646083683068,2.74678921,98.536,98.458,45.8449]
[1646083683267,17.09886354,98.536,98.458,45.8449]
[1646083683467,1.73280884,98.535,98.458,45.8449]
[1646083683669,17.40890654,98.535,98.458,45.8449]
[1646083683869,4.57671573,98.534,98.458,45.8449]
[1646083684169,1.41520325,98.532,98.458,45.8449]
[1646083684568,1.60296171,98.53,98.458,45.8449]
[1646083684971,15.6760977,98.529,98.458,45.8449]
[1646083685172,1.82972835,98.528,98.458,45.8449]
[1646083685374,4.57651756,98.528,98.458,45.8449]
[1646083685573,2.74678921,98.527,98.458,45.8449]
[1646083685971,2.74678921,98.527,98.458,148.0449]
[1646083690479,2.74678921,98.527,98.464,163.5]
[1646083690877,2.74678921,98.54,98.47,14.65]
[1646083691077,11.35715035,98.567,98.472,61.89050379]
[1646083691277,4.059,98.601,98.473,163.5]
[1646083691476,5.85265034,98.601,98.474,2.47449724]
[1646083691677,2.74678921,98.587,98.475,163.5]
[1646083691878,2.74678921,98.587,98.476,3.11459375]
[1646083692075,2.74678921,98.587,98.491,163.5]
[1646083692276,2.74678921,98.587,98.493,163.5]
[1646083693577,2.74678921,98.615,98.495,163.5]
[1646083693777,4.057,98.614,98.495,163.5]
[1646083693975,5.5457336,98.614,98.495,163.5]
[1646083694175,1.7163367,98.612,98.495,163.5]
[1646083694380,4.057,98.611,98.495,163.5]
[1646083694584,14.65,98.61,98.495,163.5]
[1646083694783,5.42807882,98.609,98.495,163.5]
[1646083694982,1.6305218,98.608,98.495,163.5]
[1646083695182,4.057,98.607,98.495,163.5]
[1646083695385,16.94938227,98.607,98.495,163.5]
[1646083695583,4.13317903,98.606,98.495,163.5]
[1646083695783,4.057,98.605,98.495,163.5]
[1646083695982,8.46845832,98.605,98.495,163.5]
[1646083696184,1.73460448,98.603,98.495,163.5]
[1646083696484,4.057,98.602,98.495,163.5]
[1646083696685,19.69617148,98.602,98.495,163.5]
[1646083696884,4.35145541,98.601,98.495,163.5]
[1646083697095,5.53964048,98.6,98.495,163.5]
[1646083697285,8.28642969,98.6,98.495,163.5]
[1646083697485,2.74678921,98.599,98.495,163.5]
[1646083697685,4.057,98.598,98.495,163.5]
[1646083698084,2.74678921,98.597,98.495,163.5]
[1646083698684,2.74678921,98.597,98.495,102.2]
[1646083700388,2.74678921,98.597,98.497,102.2]
[1646083700588,2.74678921,98.597,98.505,102.2]
[1646083700787,2.74678921,98.597,98.507,102.2]
[1646083700987,2.74678921,98.597,98.509,102.2]
[1646083703004,2.74678921,98.597,98.515,102.2]
[1646083705407,2.74678921,98.597,98.51,102.2]
[1646083705612,2.74678921,98.597,98.514,163.5]
[1646083706009,4.1379295,98.609,98.514,163.5]
[1646083710312,4.1379295,98.609,98.514,165.7739549]
[1646083712215,4.1379295,98.609,98.514,2.2739549]
[1646083712416,4.1379295,98.609,98.509,102.2]
[1646083713317,4.1379295,98.609,98.511,102.2]
[1646083713519,4.1379295,98.609,98.515,102.2]
[1646083715218,10.56473685,98.609,98.515,102.2]
[1646083717220,4.1379295,98.609,98.515,102.2]
[1646083719523,16.62174651,98.609,98.515,102.2]
[1646083721228,16.62174651,98.609,98.515,117.1448]
[1646083722225,16.62174651,98.609,98.515,102.2]
[1646083722424,15.23060622,98.609,98.52,61.3]
[1646083722625,15.23060622,98.609,98.524,56.19512125]
[1646083723327,15.23060622,98.609,98.524,117.49512125]
[1646083723829,15.23060622,98.609,98.525,150.1879]
[1646083724326,15.23060622,98.609,98.525,47.9879]
[1646083724927,15.23060622,98.609,98.526,102.2]
[1646083725328,15.23060622,98.609,98.525,47.9879]
[1646083725928,15.23060622,98.609,98.526,102.2]
[1646083726332,15.23060622,98.609,98.525,47.9879]
[1646083726930,15.23060622,98.609,98.526,102.2]
[1646083728934,15.23060622,98.609,98.527,61.3]
[1646083729133,15.23060622,98.609,98.534,163.5]
[1646083729332,13.56958112,98.626,98.534,163.5]
[1646083730035,15.3871,98.63,98.535,2.82232105]
[1646083730434,25.66834525,98.629,98.535,2.82232105]
[1646083730834,26.45746873,98.628,98.535,2.82232105]
[1646083731234,29.20425794,98.627,98.535,2.82232105]
[1646083731635,15.63467682,98.626,98.535,2.82232105]
[1646083731836,15.13467682,98.626,98.535,2.82232105]
[1646083732136,13.56958112,98.627,98.535,2.82232105]
[1646083732337,13.56958112,98.625,98.535,2.82232105]
[1646083732936,12.8926009,98.624,98.535,2.82232105]
[1646083734542,26.15538616,98.637,98.536,163.5]
[1646083734742,4.057,98.67,98.55,14.65]
[1646083735041,4.057,98.67,98.553,163.5]
[1646083735239,18.74765331,98.678,98.552,50.36545015]
[1646083735240,5.8510198,98.677,98.556,3.07165876]
[1646083735468,5.8510198,98.677,98.573,163.5]
[1646083735643,5.8510198,98.677,98.574,2.79706096]
[1646083735843,12.89068091,98.676,98.574,2.79706096]
[1646083736044,12.89068091,98.676,98.575,2.74678921]
[1646083736244,12.89068091,98.676,98.577,3.10944459]
[1646083736448,12.89068091,98.676,98.581,163.5]
[1646083736646,12.89068091,98.689,98.582,2.65592308]
[1646083736846,4.054,98.688,98.583,163.5]
[1646083737247,12.89068091,98.689,98.584,2.55964806]
[1646083737446,15.5224,98.691,98.585,163.5]
[1646083737649,15.5224,98.691,98.588,163.5]
[1646083737847,15.5224,98.691,98.591,163.5]
[1646083737848,12.88444846,98.69,98.591,163.5]
[1646083738249,12.88444846,98.69,98.592,2.78348646]
[1646083738648,15.5224,98.691,98.595,2.58437905]
[1646083740350,15.5224,98.691,98.596,4.054]
[1646083742556,15.5224,98.691,98.594,163.5]
[1646083742854,1.57600343,98.689,98.594,163.5]
[1646083743071,12.86648242,98.688,98.594,163.5]
[1646083743470,22.11012918,98.687,98.594,163.5]
[1646083743670,12.86648242,98.688,98.594,163.5]
[1646083743871,14.65,98.69,98.594,166.31207341]
[1646083744270,1.49157969,98.689,98.594,163.5]
[1646083745070,1.49157969,98.689,98.593,24.3713]
[1646083745270,24.59688252,98.688,98.593,24.3713]
[1646083745470,1.72212614,98.687,98.593,24.3713]
[1646083745670,1.72212614,98.687,98.51,183.13]
[1646083745671,112.7,98.679,98.551,4.054]
[1646083745871,14.65,98.67,98.551,4.054]
[1646083746070,5.69857649,98.669,98.576,102.2]
[1646083746270,1.64457649,98.669,98.576,102.2]
[1646083746470,20.54288252,98.668,98.576,102.2]
[1646083746673,1.48120889,98.667,98.577,54.62839777]
[1646083746871,1.49914166,98.666,98.577,54.62839777]
[1646083747070,1.68863873,98.665,98.577,54.62839777]
[1646083747271,20.04665353,98.665,98.578,24.1615]
[1646083747470,1.41330017,98.664,98.578,24.1615]
[1646083747671,1.70964302,98.649,98.578,24.1615]
[1646083748273,1.70964302,98.649,98.555,102.2]
[1646083748274,1.70964302,98.649,98.55,4.056]
[1646083748474,1.63438674,98.647,98.539,51.3431]
[1646083748875,33.03911467,98.646,98.539,47.2871]
[1646083749074,1.70867276,98.645,98.539,47.2871]
[1646083749278,14.65,98.63,98.539,47.2871]
[1646083749475,5.6745681,98.629,98.539,47.2871]
[1646083749675,18.55358557,98.629,98.539,47.2871]
[1646083749875,12.55770041,98.628,98.539,47.2871]
[1646083750076,5.50803756,98.627,98.502,4.057]
[1646083750277,5.50803756,98.627,98.503,49.1517]
[1646083750278,18.86434555,98.627,98.503,49.1517]
[1646083750476,1.44961352,98.625,98.503,49.1517]
[1646083750675,14.65,98.61,98.477,4.057]
[1646083750878,197.78,98.61,98.477,4.057]
[1646083751076,1.68072268,98.608,98.477,4.057]
[1646083751275,4.059,98.607,98.476,59.51276937]
[1646083751478,1.79324964,98.605,98.476,59.51276937]
[1646083751778,1.86985568,98.599,98.476,59.51276937]
[1646083751975,4.059,98.604,98.476,59.51276937]
[1646083751976,1.66213154,98.589,98.476,59.51276937]
[1646083752178,4.059,98.588,98.476,59.51276937]
[1646083752577,1.70899683,98.586,98.476,59.51276937]
[1646083752777,4.059,98.585,98.476,59.51276937]
[1646083752977,14.65,98.57,98.476,161.71276937]
[1646083753178,1.63435954,98.569,98.476,161.71276937]
[1646083753582,4.38114875,98.569,98.476,161.71276937]
[1646083753779,2.74678921,98.568,98.476,161.71276937]
[1646083754384,2.74678921,98.568,98.477,23.0581]
[1646083755180,4.36267051,98.568,98.477,23.0581]
[1646083755481,2.74678921,98.567,98.477,23.0581]
[1646083755883,2.74678921,98.567,98.478,102.2]
[1646083756887,2.74678921,98.567,98.48,102.2]
[1646083761288,14.65,98.57,98.48,102.2]
[1646083761889,2.74678921,98.569,98.48,102.2]
[1646083762092,4.12286835,98.569,98.48,102.2]
[1646083762294,17.47917634,98.569,98.48,102.2]
[1646083762490,8.5399772,98.568,98.48,102.2]
[1646083762889,2.74678921,98.567,98.48,102.2]
[1646083765291,2.74678921,98.567,98.451,2.39090755]
[1646083765292,1.85567611,98.565,98.421,14.9746]
[1646083765500,13.7540343,98.566,98.421,14.9746]
[1646083765501,14.65,98.55,98.421,14.9746]
[1646083765693,14.65,98.54,98.421,14.9746]
[1646083766093,14.65,98.54,98.448,102.2]
[1646083766295,14.65,98.54,98.454,163.5]
[1646083767096,14.65,98.54,98.455,2.43912576]
[1646083767696,14.65,98.54,98.458,2.32608964]
[1646083768097,2.74678921,98.549,98.458,2.32608964]
[1646083770804,2.74678921,98.549,98.46,14.65]
[1646083771006,1.62856719,98.563,98.463,163.5]
[1646083771205,2.74678921,98.564,98.464,3.06383412]
[1646083771607,2.74678921,98.562,98.464,3.06383412]
[1646083771805,2.74678921,98.562,98.467,2.5284322]
[1646083774812,2.74678921,98.562,98.468,4.059]
[1646083777126,2.74678921,98.582,98.472,2.87500444]
[1646083777331,2.74678921,98.603,98.473,4.059]
[1646083777529,4.059,98.602,98.475,2.37679385]
[1646083777727,4.059,98.604,98.478,163.5]
[1646083777927,4.059,98.604,98.491,163.5]
[1646083778127,4.059,98.604,98.493,163.5]
[1646083778327,13.35630799,98.606,98.495,61.3]
[1646083778527,13.35630799,98.606,98.496,6.56877365]
[1646083778729,13.35630799,98.606,98.498,2.33950618]
[1646083778927,13.35630799,98.606,98.514,61.3]
[1646083779127,1.49603643,98.642,98.534,61.3]
[1646083779128,4.057,98.619,98.534,61.3]
[1646083779327,14.34529143,98.619,98.535,102.2]
[1646083780529,14.34529143,98.619,98.539,102.2]
[1646083780729,21.34505815,98.618,98.539,102.2]
[1646083782332,21.34505815,98.618,98.54,61.3]
[1646083782635,21.34505815,98.618,98.545,102.2]
[1646083784136,14.34529143,98.619,98.545,102.2]
[1646083785337,14.34529143,98.619,98.556,53.81281395]
[1646083785538,24.09184736,98.632,98.557,102.2]
[1646083785739,21.34505815,98.632,98.557,102.2]
[1646083786140,2.74678921,98.631,98.557,102.2]
[1646083786339,2.74678921,98.631,98.559,102.2]
[1646083787340,21.30863553,98.63,98.559,102.2]
[1646083787642,2.74678921,98.629,98.558,24.6166]
[1646083788140,21.34505815,98.628,98.558,24.6166]
[1646083788342,1.78573354,98.627,98.558,24.6166]
[1646083788541,1.78573354,98.627,98.517,2.3067689]
[1646083788542,18.87781418,98.627,98.521,4.057]
[1646083788741,38.90253338,98.626,98.521,4.057]
[1646083788942,1.66741584,98.625,98.519,106.257]
[1646083789142,24.09184736,98.625,98.521,102.2]
[1646083789341,1.56170711,98.623,98.521,102.2]
[1646083789642,2.74678921,98.622,98.521,102.2]
[1646083789841,1.51962514,98.621,98.522,61.3]
[1646083790041,34.66494352,98.621,98.534,61.3]
[1646083790245,2.74678921,98.62,98.537,102.2]
[1646083791758,2.74678921,98.62,98.539,102.2]
[1646083791944,2.74678921,98.62,98.545,102.2]
[1646083792748,2.74678921,98.62,98.49,14.65]
[1646083792749,17.09208064,98.62,98.49,14.65]
[1646083792947,1.62901486,98.609,98.47,14.65]
[1646083793145,1.62901486,98.609,98.506,4.057]
[1646083793344,8.90801168,98.608,98.446,7.1795509]
[1646083793544,1.81510276,98.607,98.447,55.0661924]
[1646083793745,1.55137911,98.599,98.448,166.20654111]
[1646083793944,1.55137911,98.599,98.449,2.49327215]
[1646083793945,14.65,98.59,98.449,2.49327215]
[1646083794148,5.65884729,98.589,98.45,4.059]
[1646083794345,30.67951225,98.589,98.45,4.059]
[1646083794545,31.2962447,98.588,98.45,4.059]
[1646083794844,31.2962447,98.588,98.452,102.2]
[1646083794845,5.85732237,98.587,98.452,102.2]
[1646083795045,8.60411158,98.587,98.454,163.5]
[1646083795249,36.92190269,98.586,98.454,163.5]
[1646083795445,5.79546289,98.585,98.454,163.5]
[1646083795745,14.65,98.57,98.451,47.9215]
[1646083795946,5.48754296,98.569,98.451,47.9215]
[1646083796145,18.40429143,98.569,98.451,47.9215]
[1646083796345,27.5196022,98.568,98.451,47.9215]
[1646083796546,5.74279576,98.567,98.451,47.9215]
[1646083796845,183.13,98.56,98.451,47.9215]
[1646083797046,14.65,98.55,98.451,47.9215]
[1646083797247,5.90893702,98.549,98.451,47.9215]
[1646083797447,183.13,98.54,98.451,47.9215]
[1646083797647,14.65,98.53,98.451,47.9215]
[1646083798045,13.35630799,98.529,98.451,47.9215]
[1646083798246,1.81960088,98.528,98.451,47.9215]
[1646083798449,4.56639009,98.528,98.451,47.9215]
[1646083798647,38.40071617,98.527,98.451,47.9215]
[1646083798848,1.69322644,98.526,98.451,47.9215]
[1646083799048,16.50082351,98.526,98.451,47.9215]
[1646083799250,4.32172937,98.525,98.451,47.9215]
[1646083799448,16.1030972,98.525,98.451,47.9215]
[1646083799652,4.3278973,98.524,98.451,47.9215]
[1646083799849,4.3278973,98.524,98.447,52.06058001]
[1646083799850,14.65,98.51,98.447,52.06058001]
[1646083800248,1.67607058,98.509,98.447,52.06058001]
[1646083800454,4.42285979,98.509,98.447,52.06058001]
[1646083800650,4.32287891,98.508,98.447,52.06058001]
[1646083801050,2.74678921,98.507,98.447,52.06058001]
[1646083801250,6.80778921,98.507,98.447,52.06058001]
[1646083801451,6.80778921,98.507,98.415,4.061]
[1646083801651,42.46542135,98.506,98.415,4.061]
[1646083801850,1.70257924,98.505,98.415,4.061]
[1646083802052,14.65,98.49,98.415,4.061]
[1646083802453,14.65,98.49,98.416,54.34132841]
[1646083802974,2.74678921,98.489,98.416,54.34132841]
[1646083803756,2.74678921,98.489,98.417,23.6219]
[1646083805758,2.14626149,98.488,98.417,23.6219]
[1646083805957,1.4395197,98.487,98.417,23.6219]
[1646083806159,4.18630891,98.487,98.417,23.6219]
[1646083806358,16.50082351,98.486,98.417,23.6219]
[1646083806659,1.67594668,98.485,98.417,23.6219]
[1646083806858,14.65,98.47,98.417,23.6219]
[1646083807061,17.77904388,98.485,98.417,23.6219]
[1646083807062,14.65,98.48,98.417,23.6219]
[1646083807259,2.74678921,98.469,98.417,23.6219]
[1646083807459,2.74678921,98.469,98.416,54.34132841]
[1646083807659,4.44551038,98.469,98.416,54.34132841]
[1646083808061,2.74678921,98.468,98.416,54.34132841]
[1646083808259,4.24289085,98.468,98.416,54.34132841]
[1646083808661,2.74678921,98.467,98.416,54.34132841]
[1646083809261,4.48049448,98.467,98.416,54.34132841]
[1646083809661,2.74678921,98.466,98.416,54.34132841]
[1646083810783,25.37334071,98.465,98.416,54.34132841]
[1646083811185,25.37334071,98.465,98.415,4.061]
[1646083811186,4.2093816,98.464,98.415,4.061]
[1646083811384,14.65,98.45,98.415,4.061]
[1646083811784,2.74678921,98.449,98.415,4.061]
[1646083813793,2.74678921,98.449,98.415,2.33140746]
[1646083813987,14.34529143,98.448,98.347,15.5177]
[1646083814188,1.35493532,98.447,98.347,15.5177]
[1646083814390,4.10172453,98.447,98.347,15.5177]
[1646083814787,183.13,98.44,98.348,42.86379419]
[1646083814986,14.65,98.43,98.348,42.86379419]
[1646083815187,1.75494672,98.429,98.348,42.86379419]
[1646083815387,4.50173593,98.429,98.348,42.86379419]
[1646083815587,5.51178536,98.428,98.348,42.86379419]
[1646083815787,44.41204629,98.428,98.306,3.09153905]
[1646083815991,29.95614944,98.427,98.306,3.09153905]
[1646083816189,5.81465827,98.426,98.305,102.2]
[1646083816389,26.36667092,98.426,98.305,102.2]
[1646083816588,32.59859844,98.425,98.305,102.2]
[1646083816789,14.65,98.41,98.306,49.08486156]
[1646083816988,1.78412699,98.409,98.307,102.2]
[1646083817188,29.90425691,98.409,98.307,102.2]
[1646083817391,1.47564424,98.408,98.307,102.2]
[1646083817689,4.4252863,98.407,98.307,102.2]
[1646083817888,12.31301719,98.407,98.307,102.2]
[1646083818089,2.74678921,98.406,98.314,61.3]
[1646083818291,14.65,98.41,98.325,102.2]
[1646083818592,14.65,98.41,98.328,2.65873229]
[1646083818789,14.65,98.41,98.326,53.28564996]
[1646083818989,14.65,98.41,98.327,24.1864]
[1646083818990,1.75764042,98.409,98.327,24.1864]
[1646083819392,2.74678921,98.408,98.327,24.1864]
[1646083819991,4.27456685,98.408,98.327,24.1864]
[1646083820393,2.74678921,98.407,98.327,24.1864]
[1646083822695,4.52058314,98.407,98.327,24.1864]
[1646083823097,2.74678921,98.406,98.327,24.1864]
[1646083824395,1.58436318,98.404,98.327,24.1864]
[1646083824595,4.065,98.403,98.327,24.1864]
[1646083824795,14.65,98.39,98.327,24.1864]
[1646083826196,17.39678921,98.39,98.327,24.1864]
[1646083827097,26.82626886,98.389,98.327,24.1864]
[1646083827400,4.10083221,98.388,98.327,24.1864]
[1646083827596,4.10083221,98.388,98.326,53.28564996]
[1646083827798,2.74678921,98.387,98.326,53.28564996]
[1646083828197,28.81346326,98.387,98.326,53.28564996]
[1646083828597,2.74678921,98.386,98.326,53.28564996]
[1646083829599,2.74678921,98.386,98.327,24.3959]
[1646083830099,26.06667405,98.385,98.327,24.3959]
[1646083830403,2.74678921,98.384,98.327,24.3959]
[1646083830601,14.65,98.38,98.327,24.3959]
[1646083830999,2.74678921,98.379,98.327,24.3959]
[1646083834503,2.74678921,98.379,98.328,102.2]
[1646083834804,2.74678921,98.39,98.332,102.2]
[1646083835004,183.13,98.48,98.327,24.3959]
[1646083835005,14.65,98.44,98.335,61.3]
[1646083835202,14.65,98.44,98.327,24.3959]
[1646083835203,14.65,98.44,98.344,163.5]
[1646083835404,14.65,98.44,98.345,2.27619149]
[1646083835803,2.74678921,98.439,98.345,2.27619149]
[1646083836002,5.35773522,98.439,98.345,2.27619149]
[1646083836203,2.74678921,98.439,98.345,2.27619149]
[1646083836402,2.74678921,98.438,98.347,102.2]
[1646083836603,5.35773522,98.438,98.348,2.83303609]
[1646083836804,2.74678921,98.438,98.348,2.83303609]
[1646083837003,5.35773522,98.437,98.348,2.83303609]
[1646083837204,5.35773522,98.437,98.349,102.2]
[1646083837405,2.74678921,98.436,98.355,102.2]
[1646083837605,5.35773522,98.436,98.357,102.2]
[1646083837805,5.35773522,98.436,98.358,3.10093805]
[1646083838004,2.74678921,98.435,98.358,3.10093805]
[1646083838206,5.35773522,98.435,98.358,3.10093805]
[1646083838412,4.065,98.452,98.358,3.10093805]
[1646083838605,2.3478,98.459,98.359,61.3]
[1646083838806,2.74678921,98.451,98.36,2.81112418]
[1646083839006,2.74678921,98.451,98.364,163.5]
[1646083839205,2.74678921,98.451,98.366,102.2]
[1646083839408,2.74678921,98.451,98.367,2.39491141]
[1646083840405,2.74678921,98.451,98.372,102.2]
[1646083840605,2.74678921,98.451,98.373,2.6382128]
[1646083840807,2.74678921,98.451,98.366,104.54853931]
[1646083841006,14.65,98.45,98.367,2.43208794]
[1646083841207,19.60874601,98.45,98.367,2.43208794]
[1646083841407,2.74678921,98.449,98.367,2.43208794]
[1646083841607,4.52586053,98.449,98.365,24.8857]
[1646083841806,24.80325005,98.448,98.365,24.8857]
[1646083842009,1.56206221,98.447,98.365,24.8857]
[1646083842206,1.80822854,98.446,98.365,24.8857]
[1646083842408,30.33803023,98.446,98.365,24.8857]
[1646083842608,14.30474728,98.445,98.365,24.8857]
[1646083842808,16.32249492,98.43,98.365,24.8857]
[1646083843309,4.3252975,98.429,98.292,2.79346416]
[1646083843509,1.50918656,98.428,98.347,45.64807199]
[1646083843708,1.63797412,98.427,98.347,45.64807199]
[1646083843908,9.91954351,98.427,98.347,45.64807199]
[1646083844109,1.3950906,98.426,98.347,45.64807199]
[1646083844309,1.61701956,98.425,98.347,45.64807199]
[1646083844514,14.65,98.41,98.316,22.5272]
[1646083845111,2.74678921,98.409,98.316,22.5272]
[1646083845510,2.74678921,98.409,98.338,55.33672858]
[1646083846012,2.74678921,98.409,98.339,22.7061]
[1646083846212,2.24678921,98.409,98.339,22.7061]
[1646083846413,2.74678921,98.408,98.339,22.7061]
[1646083846812,2.74678921,98.409,98.339,22.7061]
[1646083850620,4.43796257,98.409,98.339,22.7061]
[1646083850818,4.95874601,98.408,98.339,22.7061]
[1646083851218,2.74678921,98.407,98.339,22.7061]
[1646083851419,4.065,98.406,98.339,22.7061]
[1646083851844,2.74678921,98.405,98.339,22.7061]
[1646083852245,4.065,98.404,98.339,22.7061]
[1646083852449,14.65,98.39,98.339,22.7061]
[1646083861965,14.65,98.39,98.3,24.6264]
[1646083862161,9.02574601,98.389,98.3,24.6264]
[1646083862362,21.91568399,98.389,98.3,24.6264]
[1646083862560,14.65,98.39,98.3,24.6264]
[1646083862760,14.65,98.39,98.301,53.67089634]
[1646083862959,26.9187917,98.389,98.301,53.67089634]
[1646083863158,1.75625776,98.388,98.301,53.67089634]
[1646083863359,4.067,98.387,98.302,23.0908]
[1646083863761,21.14435065,98.386,98.302,23.0908]
[1646083863961,4.067,98.385,98.302,23.0908]
[1646083864361,5.84539389,98.385,98.302,23.0908]
[1646083864765,2.74678921,98.384,98.302,23.0908]
[1646083865064,14.65,98.37,98.302,23.0908]
[1646083865462,2.74678921,98.369,98.302,23.0908]
[1646083865862,4.52474818,98.369,98.302,23.0908]
[1646083866261,6.81378921,98.368,98.302,23.0908]
[1646083866661,2.74678921,98.367,98.302,23.0908]
[1646083866861,4.067,98.366,98.302,23.0908]
[1646083867061,17.3882188,98.366,98.302,23.0908]
[1646083867262,4.17395725,98.365,98.302,23.0908]
[1646083867470,14.65,98.35,98.302,23.0908]
[1646083867668,1.47917296,98.349,98.29,50.0]
[1646083867866,4.067,98.348,98.29,50.0]
[1646083868265,20.13500801,98.348,98.29,50.0]
[1646083868467,1.67892812,98.347,98.29,50.0]
[1646083868666,4.067,98.346,98.29,50.0]
[1646083868866,6.81378921,98.346,98.29,50.0]
[1646083869166,2.74678921,98.345,98.29,50.0]
[1646083869366,14.65,98.33,98.29,50.0]
[1646083869765,2.74678921,98.329,98.29,50.0]
[1646083870270,4.31154367,98.329,98.29,50.0]
[1646083870489,4.067,98.328,98.29,50.0]
[1646083870673,33.42270357,98.328,98.29,50.0]
[1646083870968,1.4508026,98.326,98.29,50.0]
[1646083871167,4.067,98.325,98.29,50.0]
[1646083871367,20.10148477,98.325,98.29,50.0]
[1646083871568,9.38725133,98.324,98.29,47.482]
[1646083871769,14.65,98.31,98.197,2.99253189]
[1646083871968,1.87194464,98.309,98.198,2.86561174]
[1646083872168,1.87194464,98.309,98.199,2.33664175]
[1646083872169,1.35020542,98.308,98.199,2.33664175]
[1646083872369,1.35020542,98.308,98.2,2.51964242]
[1646083872569,5.73177481,98.308,98.201,2.26636934]
[1646083872773,2.74678921,98.307,98.202,2.68654834]
[1646083872969,2.74678921,98.307,98.185,102.2]
[1646083872970,2.74678921,98.307,98.203,2.76921825]
[1646083873269,2.74678921,98.307,98.204,2.42671266]
[1646083873471,4.07,98.306,98.205,2.94793669]
[1646083873669,4.07,98.306,98.205,2.89627895]
[1646083873869,2.74678921,98.305,98.205,2.36025381]
[1646083874071,2.74678921,98.305,98.185,102.2]
[1646083874072,4.07,98.304,98.185,102.2]
[1646083874275,14.65,98.29,98.185,2.95955601]
[1646083874471,1.5468449,98.289,98.185,105.15955601]
[1646083874670,4.32541707,98.289,98.226,47.53006605]
[1646083874870,4.07,98.288,98.226,47.53006605]
[1646083875073,6.81678921,98.288,98.185,105.15955601]
[1646083875275,2.74678921,98.287,98.185,2.95955601]
[1646083875672,4.07,98.286,98.185,2.95955601]
[1646083875873,4.07,98.286,98.185,105.15955601]
[1646083876072,2.74678921,98.285,98.224,49.17662043]
[1646083876273,14.65,98.27,98.224,49.17662043]
[1646083878676,2.74678921,98.269,98.186,23.8294]
[1646083878875,2.74678921,98.269,98.186,126.0294]
[1646083879476,2.74678921,98.269,98.186,23.8294]
[1646083879676,2.74678921,98.269,98.213,51.8153692]
[1646083879877,2.74678921,98.269,98.214,24.8066]
[1646083881377,2.74678921,98.269,98.24,10.95317535]
[1646083881580,65.0,98.268,98.183,48.3293]
[1646083881783,5.83719014,98.267,98.183,48.3293]
[1646083881978,8.58397935,98.267,98.183,48.3293]
[1646083882178,1.65840256,98.266,98.183,48.3293]
[1646083882378,4.072,98.265,98.184,23.3154]
[1646083882578,31.48300635,98.265,98.184,23.3154]
[1646083882779,36.74358898,98.264,98.184,23.3154]
[1646083882982,14.65,98.25,98.184,23.3154]